bitfinex-derivatives/quotes_SOLF0:USTF0_20250808
["timestamp","ask_amount","ask_price","bid_price","bid_amount"]
[1754650049675,5.12369434,176.63,176.6,5.30369434]
[1754650049876,3.09,176.62,176.61,3.27]
[1754650050381,2.03369434,176.62,176.6,5.6613]
[1754650050579,3.09,176.61,176.6,8.9313]
[1754650053584,3.09,176.61,176.6,3.27]
[1754650053875,3.09,176.61,176.58,2.03369434]
[1754650054082,3.09,176.6,176.58,8.932]
[1754650054282,3.09,176.59,176.58,8.932]
[1754650062590,3.09,176.59,176.58,10.96569434]
[1754650065290,3.09,176.59,176.58,8.932]
[1754650065488,3.09,176.59,176.58,10.96569434]
[1754650072995,3.09,176.59,176.58,7.69569434]
[1754650074194,3.09,176.59,176.58,10.96569434]
[1754650076299,3.09,176.59,176.58,8.932]
[1754650076594,3.09,176.59,176.58,10.96569434]
[1754650081289,3.28,176.59,176.54,9.91]
[1754650081499,3.28,176.55,176.54,9.91]
[1754650081803,3.28,176.54,176.51,2.03369434]
[1754650081999,3.28,176.54,176.51,5.30369434]
[1754650082195,5.31369434,176.54,176.51,5.30369434]
[1754650082395,3.28,176.53,176.51,5.30369434]
[1754650082698,3.28,176.53,176.52,8.9339]
[1754650085303,3.28,176.53,176.52,5.6639]
[1754650085504,5.31369434,176.53,176.49,5.30369434]
[1754650085696,3.28,176.51,176.49,5.30369434]
[1754650086095,3.28,176.51,176.5,5.6646]
[1754650086899,2.03369434,176.51,176.48,5.6652]
[1754650087095,5.21369434,176.5,176.48,5.6652]
[1754650087304,3.18,176.49,176.48,5.6652]
[1754650087602,3.18,176.48,176.42,103.64]
[1754650087799,3.18,176.48,176.44,5.06369434]
[1754650087993,5.21369434,176.48,176.44,5.06369434]
[1754650088201,3.18,176.47,176.45,5.6663]
[1754650088398,3.18,176.47,176.44,5.06369434]
[1754650088598,3.18,176.47,176.45,3.03]
[1754650089093,3.18,176.47,176.46,5.666]
[1754650090100,3.18,176.47,176.44,5.6663]
[1754650090101,2.03369434,176.47,176.44,5.6663]
[1754650090305,5.21369434,176.46,176.44,5.6663]
[1754650090508,2.03369434,176.46,176.44,5.6663]
[1754650090806,3.18,176.45,176.44,5.6663]
[1754650091210,5.21369434,176.45,176.44,5.6663]
[1754650091509,3.18,176.44,176.43,5.6669]
[1754650092406,3.18,176.44,176.43,8.6969]
[1754650093110,3.18,176.44,176.43,5.6669]
[1754650093804,3.18,176.46,176.41,3.03]
[1754650094208,3.18,176.46,176.43,5.6668]
[1754650095012,3.18,176.46,176.43,8.6968]
[1754650095410,3.18,176.46,176.43,5.6668]
[1754650095710,3.18,176.46,176.44,5.6666]
[1754650096106,3.18,176.45,176.41,3.03]
[1754650096409,3.18,176.45,176.42,3.03]
[1754650096805,3.18,176.45,176.44,5.6666]
[1754650097208,3.18,176.48,176.46,5.6658]
[1754650097410,3.18,176.48,176.46,8.6958]
[1754650097614,3.18,176.47,176.43,3.184036]
[1754650097910,3.18,176.47,176.46,5.666]
[1754650098106,3.18,176.47,176.46,8.696]
[1754650103310,3.18,176.5,176.49,8.695]
[1754650103916,3.18,176.52,176.51,5.6642]
[1754650104312,3.18,176.52,176.51,8.6942]
[1754650105518,3.18,176.53,176.52,8.6938]
[1754650107012,13.18,176.54,176.53,8.6937]
[1754650107223,3.18,176.54,176.53,8.6937]
[1754650107519,3.18,176.56,176.55,5.6629]
[1754650110916,3.18,176.56,176.55,8.6929]
[1754650112114,3.18,176.56,176.55,5.6629]
[1754650112311,10.0,176.55,176.49,3.184036]
[1754650112519,3.18,176.54,176.49,3.03]
[1754650112817,3.18,176.54,176.51,5.6642]
[1754650113121,3.18,176.54,176.49,3.03]
[1754650113316,3.18,176.54,176.46,3.184036]
[1754650113511,3.184036,176.53,176.46,6.214036]
[1754650113715,3.18,176.52,176.46,3.184036]
[1754650113916,3.18,176.52,176.47,3.03]
[1754650114116,3.18,176.52,176.46,3.184036]
[1754650114318,3.18,176.52,176.49,5.6649]
[1754650114720,10.0,176.5,176.48,5.6653]
[1754650114918,3.18,176.49,176.48,5.6653]
[1754650116920,3.18,176.49,176.48,8.7153]
[1754650117728,3.18,176.49,176.48,5.6653]
[1754650117930,3.18,176.49,176.47,5.6656]
[1754650118326,3.18,176.49,176.45,103.66]
[1754650118519,3.18,176.49,176.46,5.6659]
[1754650120626,3.18,176.49,176.47,5.6656]
[1754650120823,10.0,176.5,176.47,3.05]
[1754650121128,3.05,176.49,176.48,5.6651]
[1754650121426,10.0,176.51,176.48,3.05]
[1754650121629,13.05,176.51,176.48,3.05]
[1754650121826,10.0,176.54,176.49,3.184036]
[1754650122026,3.05,176.53,176.5,3.05]
[1754650122428,3.05,176.53,176.52,5.664]
[1754650122634,3.05,176.53,176.52,8.714]
[1754650122929,10.0,176.54,176.52,3.05]
[1754650122930,13.05,176.54,176.52,3.05]
[1754650123131,13.05,176.54,176.53,3.05]
[1754650123327,13.05,176.54,176.53,5.6637]
[1754650126333,10.0,176.54,176.52,5.6639]
[1754650126533,3.05,176.53,176.52,5.6639]
[1754650127034,3.05,176.53,176.51,5.6643]
[1754650127236,3.05,176.53,176.5,3.05]
[1754650127835,3.05,176.53,176.51,5.6644]
[1754650128335,3.05,176.53,176.52,5.664]
[1754650129724,13.05,176.54,176.53,8.7137]
[1754650130033,3.05,176.55,176.54,3.05]
[1754650130231,3.05,176.55,176.51,3.184036]
[1754650130438,3.05,176.55,176.54,5.6634]
[1754650131236,3.05,176.55,176.53,5.6636]
[1754650132635,3.05,176.55,176.54,5.6634]
[1754650133335,3.05,176.55,176.53,5.6636]
[1754650133536,3.05,176.55,176.52,3.05]
[1754650133933,3.05,176.55,176.51,5.6643]
[1754650134236,3.05,176.55,176.51,3.05]
[1754650134936,6.234036,176.55,176.49,13.26]
[1754650135138,3.05,176.54,176.49,13.26]
[1754650135337,13.184036,176.51,176.45,3.05]
[1754650135637,3.05,176.5,176.46,3.05]
[1754650136934,3.184036,176.49,176.44,3.05]
[1754650137144,3.05,176.48,176.44,3.05]
[1754650137637,3.184036,176.47,176.4,3.184036]
[1754650137939,3.05,176.45,176.42,3.05]
[1754650138131,3.05,176.45,176.44,3.05]
[1754650138535,3.05,176.48,176.45,3.05]
[1754650139540,3.05,176.48,176.44,5.6664]
[1754650139936,3.05,176.48,176.44,8.7164]
[1754650140135,3.05,176.46,176.41,3.05]
[1754650140641,3.05,176.46,176.42,8.7172]
[1754650141843,3.05,176.46,176.43,3.05]
[1754650142031,3.05,176.45,176.42,3.05]
[1754650142238,3.05,176.44,176.43,3.05]
[1754650143449,3.05,176.44,176.43,8.7169]
[1754650144043,3.05,176.44,176.43,3.05]
[1754650145645,3.05,176.44,176.38,3.184036]
[1754650145840,3.184036,176.47,176.41,5.6674]
[1754650146047,3.09,176.43,176.42,3.22]
[1754650146637,3.09,176.43,176.41,5.6674]
[1754650146842,3.09,176.42,176.41,8.8874]
[1754650148046,10.0,176.45,176.41,8.8874]
[1754650148247,3.09,176.43,176.42,3.22]
[1754650148449,3.09,176.43,176.42,8.8873]
[1754650149152,3.09,176.43,176.42,3.22]
[1754650149847,3.09,176.43,176.42,8.8873]
[1754650151146,10.0,176.45,176.42,5.6673]
[1754650151346,3.09,176.44,176.43,3.22]
[1754650153453,3.09,176.44,176.42,8.8873]
[1754650153655,3.09,176.43,176.42,8.8873]
[1754650154550,10.0,176.45,176.42,8.8873]
[1754650154749,3.09,176.44,176.42,8.8873]
[1754650155355,3.09,176.43,176.42,8.8873]
[1754650157150,3.09,176.43,176.42,5.6673]
[1754650157454,3.09,176.43,176.41,5.6675]
[1754650157851,3.09,176.43,176.39,13.42]
[1754650158154,3.09,176.43,176.4,5.6677]
[1754650158356,3.09,176.43,176.4,8.8877]
[1754650159756,3.09,176.43,176.41,5.6676]
[1754650159958,3.09,176.43,176.41,8.8876]
[1754650160457,3.09,176.43,176.4,5.6678]
[1754650160655,3.09,176.43,176.4,8.8878]
[1754650161654,3.09,176.43,176.4,3.22]
[1754650161861,6.274036,176.43,176.39,15.8681]
[1754650162159,3.09,176.4,176.39,6.9]
[1754650162358,3.09,176.4,176.34,3.22]
[1754650162959,3.09,176.4,176.38,3.22]
[1754650163350,3.09,176.4,176.35,3.22]
[1754650163555,3.09,176.4,176.36,3.22]
[1754650163751,3.09,176.4,176.35,5.6693]
[1754650163951,3.09,176.4,176.37,3.22]
[1754650164552,3.09,176.4,176.34,3.22]
[1754650165154,3.09,176.39,176.38,8.8884]
[1754650165352,3.09,176.39,176.36,3.22]
[1754650165551,3.09,176.39,176.33,3.184036]
[1754650165756,3.09,176.38,176.37,5.6687]
[1754650166354,3.09,176.38,176.37,3.22]
[1754650167455,3.09,176.38,176.36,5.6691]
[1754650167860,3.09,176.38,176.36,8.8891]
[1754650168657,3.09,176.37,176.36,5.6691]
[1754650169359,3.184036,176.39,176.36,5.6691]
[1754650169557,3.09,176.37,176.33,3.22]
[1754650170257,3.09,176.37,176.34,5.6696]
[1754650170452,3.09,176.36,176.34,5.6696]
[1754650170658,3.09,176.38,176.32,103.62]
[1754650170853,13.184036,176.39,176.35,5.6693]
[1754650171058,3.09,176.37,176.36,3.22]
[1754650171257,3.09,176.37,176.34,3.22]
[1754650171464,6.274036,176.37,176.34,8.8896]
[1754650171658,3.09,176.36,176.35,3.22]
[1754650173457,3.184036,176.37,176.27,381.28]
[1754650173458,3.09,176.33,176.29,3.184036]
[1754650174066,3.09,176.33,176.31,5.6706]
[1754650174264,3.09,176.33,176.32,3.22]
[1754650174766,3.09,176.36,176.32,3.22]
[1754650175266,3.09,176.35,176.34,3.22]
[1754650175656,3.09,176.35,176.32,8.8904]
[1754650175965,3.09,176.35,176.33,3.22]
[1754650176164,3.29,176.34,176.32,5.6704]
[1754650176767,3.29,176.34,176.33,3.2]
[1754650177663,13.184036,176.37,176.33,5.6701]
[1754650177869,3.29,176.36,176.29,3.2]
[1754650178370,3.29,176.34,176.28,103.62]
[1754650178562,3.29,176.34,176.29,3.2]
[1754650178868,3.29,176.32,176.3,3.2]
[1754650179069,3.184036,176.33,176.3,3.2]
[1754650179258,3.29,176.31,176.3,3.2]
[1754650179762,3.29,176.31,176.3,8.8711]
[1754650179963,3.29,176.32,176.31,3.2]
[1754650180268,3.29,176.32,176.28,103.62]
[1754650180466,6.474036,176.31,176.27,3.2]
[1754650180764,3.184036,176.32,176.29,3.2]
[1754650180967,3.29,176.31,176.29,3.2]
[1754650181168,3.29,176.31,176.29,8.8712]
[1754650181369,3.29,176.31,176.29,3.2]
[1754650182167,3.29,176.3,176.24,106.824036]
[1754650182666,6.474036,176.32,176.26,3.184036]
[1754650182865,3.184036,176.32,176.29,5.6713]
[1754650183065,3.29,176.31,176.3,3.2]
[1754650183266,10.0,176.31,176.26,3.2]
[1754650183465,3.29,176.29,176.26,3.2]
[1754650183866,3.29,176.29,176.27,5.6719]
[1754650184070,3.29,176.29,176.28,3.2]
[1754650184665,3.29,176.29,176.26,3.2]
[1754650184871,3.29,176.29,176.27,3.2]
[1754650186173,3.29,176.29,176.25,3.2]
[1754650186365,3.184036,176.28,176.18,3.2]
[1754650186562,3.29,176.26,176.2,3.2]
[1754650186763,3.29,176.26,176.23,5.6732]
[1754650186962,3.29,176.26,176.24,3.2]
[1754650187368,6.474036,176.26,176.23,3.2]
[1754650187671,3.29,176.25,176.23,3.2]
[1754650187868,13.29,176.25,176.23,3.2]
[1754650188064,6.474036,176.24,176.21,3.2]
[1754650188268,3.29,176.23,176.2,3.2]
[1754650188466,3.29,176.23,176.18,3.2]
[1754650188868,3.29,176.23,176.22,5.6737]
[1754650189073,3.29,176.24,176.17,381.44]
[1754650189375,3.29,176.24,176.23,5.6734]
[1754650189574,3.29,176.24,176.23,8.8734]
[1754650190172,3.29,176.25,176.24,8.873]
[1754650191675,13.184036,176.27,176.25,5.6727]
[1754650191676,16.474036,176.27,176.25,5.6727]
[1754650191875,3.29,176.26,176.25,8.8727]
[1754650192072,3.29,176.29,176.22,3.2]
[1754650192274,13.29,176.29,176.22,3.2]
[1754650192580,3.29,176.28,176.27,3.2]
[1754650193277,3.29,176.28,176.25,5.6726]
[1754650193477,6.474036,176.28,176.26,3.2]
[1754650193677,3.29,176.27,176.26,3.2]
[1754650194079,3.29,176.26,176.25,8.8726]
[1754650195980,3.184036,176.28,176.26,5.6722]
[1754650196181,3.29,176.27,176.26,8.8722]
[1754650196576,3.29,176.3,176.29,8.8714]
[1754650197575,381.52,176.38,176.29,3.2]
[1754650197576,3.184036,176.34,176.29,3.2]
[1754650197776,10.0,176.33,176.29,3.2]
[1754650198173,13.29,176.33,176.32,8.8705]
[1754650198773,10.0,176.33,176.32,8.8705]
[1754650198972,3.29,176.35,176.34,5.6698]
[1754650199282,3.29,176.35,176.34,8.8698]
[1754650199783,3.29,176.36,176.35,5.6693]
[1754650199986,3.29,176.36,176.3,3.184036]
[1754650200379,3.29,176.36,176.35,5.6695]
[1754650200684,3.29,176.36,176.35,8.8695]
[1754650201276,3.29,176.36,176.3,3.184036]
[1754650201480,3.29,176.36,176.31,3.2]
[1754650202179,3.29,176.35,176.31,3.2]
[1754650202782,3.29,176.34,176.31,3.2]
[1754650203174,3.29,176.36,176.33,3.2]
[1754650203588,13.29,176.37,176.33,3.2]
[1754650203984,13.29,176.37,176.36,8.8692]
[1754650204384,13.29,176.37,176.36,3.2]
[1754650204889,3.29,176.36,176.35,3.2]
[1754650205186,3.29,176.36,176.35,8.8693]
[1754650205982,10.0,176.37,176.36,8.7092]
[1754650206281,3.09,176.4,176.36,3.04]
[1754650206482,13.184036,176.42,176.39,5.6682]
[1754650206675,13.184036,176.42,176.39,8.7082]
[1754650206987,3.09,176.41,176.38,5.6684]
[1754650207188,3.09,176.41,176.38,3.04]
[1754650207581,3.09,176.41,176.34,3.184036]
[1754650207789,3.09,176.41,176.35,3.04]
[1754650209183,3.09,176.41,176.38,5.6685]
[1754650209386,3.09,176.41,176.39,3.04]
[1754650209878,3.12602144,176.41,176.39,8.7082]
[1754650210079,0.03602144,176.41,176.39,5.6682]
[1754650210284,3.12602144,176.41,176.4,3.04]
[1754650210482,3.12602144,176.41,176.4,8.7079]
[1754650211490,3.12602144,176.41,176.4,3.04]
[1754650212294,3.12602144,176.41,176.4,8.7079]
[1754650213489,3.12602144,176.41,176.4,3.04]
[1754650218999,3.12602144,176.41,176.4,8.7079]
[1754650219789,0.03602144,176.41,176.4,8.7079]
[1754650222499,0.03602144,176.41,176.4,11.891936]
[1754650224199,0.03602144,176.41,176.4,8.7079]
[1754650226492,0.03602144,176.41,176.4,11.891936]
[1754650228197,2.144e-05,176.41,176.4,11.891936]
[1754650228503,3.09,176.46,176.45,8.7063]
[1754650235598,10.0,176.49,176.45,8.7063]
[1754650235805,3.09,176.48,176.47,3.04]
[1754650237310,3.09,176.48,176.47,8.7056]
[1754650239014,3.09,176.48,176.46,8.9359]
[1754650239216,3.09,176.48,176.46,3.27]
[1754650240213,3.09,176.48,176.47,5.6656]
[1754650241212,3.09,176.48,176.47,8.9356]
[1754650241915,10.0,176.49,176.48,8.9353]
[1754650242116,2.97,176.52,176.48,3.27]
[1754650242515,2.97,176.52,176.51,5.6644]
[1754650243314,10.0,176.53,176.5,5.6646]
[1754650243622,2.97,176.52,176.48,3.31049382]
[1754650244410,2.97,176.52,176.5,5.6645]
[1754650245507,2.97,176.52,176.51,5.6644]
[1754650245712,2.97,176.52,176.51,8.9344]
[1754650245913,2.97,176.52,176.5,8.9346]
[1754650248617,2.97,176.52,176.51,5.6644]
[1754650249222,10.0,176.53,176.52,5.664]
[1754650249418,2.97,176.53,176.52,8.934]
[1754650250709,2.97,176.53,176.51,8.9342]
[1754650251216,2.97,176.53,176.49,3.27]
[1754650252417,2.97,176.53,176.5,5.6647]
[1754650252619,2.97,176.53,176.5,8.9347]
[1754650254517,2.97,176.51,176.48,0.04049382]
[1754650254721,2.97,176.49,176.48,0.04049382]
[1754650255820,2.97,176.49,176.48,3.31049382]
[1754650256123,2.97,176.49,176.48,8.97579382]
[1754650259025,2.97,176.49,176.48,3.31049382]
[1754650260013,2.97,176.49,176.48,0.04049382]
[1754650260622,2.97,176.49,176.48,3.31049382]
[1754650261219,2.97,176.49,176.48,0.04049382]
[1754650261426,10.0,176.49,176.41,9.2]
[1754650261627,2.97,176.46,176.42,3.27]
[1754650261823,2.97,176.48,176.42,3.27]
[1754650262319,2.97,176.46,176.45,3.27]
[1754650262519,3.184036,176.45,176.43,3.27]
[1754650262725,2.97,176.44,176.43,3.27]
[1754650262925,2.97,176.44,176.43,8.9366]
[1754650263124,3.184036,176.45,176.41,9.2]
[1754650263325,2.97,176.42,176.41,9.2]
[1754650263521,6.154036,176.42,176.41,9.2]
[1754650263724,3.184036,176.42,176.37,3.27]
[1754650263925,2.97,176.39,176.37,3.27]
[1754650264126,2.97,176.38,176.32,3.27]
[1754650264328,6.154036,176.38,176.32,3.27]
[1754650264725,6.154036,176.38,176.35,5.6694]
[1754650264929,0.04300549,176.37,176.36,3.27]
[1754650265125,0.04300549,176.37,176.31,6.454036]
[1754650265333,3.01300549,176.37,176.32,5.6702]
[1754650265526,2.97,176.35,176.27,3.184036]
[1754650265830,3.184036,176.32,176.28,3.27]
[1754650266033,2.99,176.31,176.28,3.27]
[1754650266438,3.22558353,176.32,176.31,8.8108]
[1754650266439,0.04154753,176.32,176.31,8.8108]
[1754650267529,3.184036,176.49,176.4,5.6678]
[1754650267735,3.184036,176.43,176.39,3.14]
[1754650267936,10.0,176.41,176.35,3.184036]
[1754650268134,2.99,176.4,176.38,8.8083]
[1754650268339,2.99,176.39,176.38,8.8083]
[1754650268836,21.834036,176.39,176.31,3.14]
[1754650269133,21.834036,176.39,176.3,12.45]
[1754650269134,2.99,176.31,176.3,12.45]
[1754650269329,12.99,176.31,176.3,12.45]
[1754650269834,2.99,176.3,176.19,106.884036]
[1754650270136,3.184036,176.27,176.2,3.14]
[1754650270727,16.174036,176.29,176.27,3.14]
[1754650270928,10.0,176.29,176.23,3.184036]
[1754650271135,3.184036,176.33,176.26,3.14]
[1754650271335,2.99,176.3,176.27,3.14]
[1754650271524,2.99,176.34,176.26,3.14]
[1754650271728,6.174036,176.37,176.36,5.6692]
[1754650271926,2.99,176.37,176.34,3.14]
[1754650272137,10.0,176.38,176.33,3.184036]
[1754650272338,10.0,176.38,176.37,8.8089]
[1754650272635,2.99,176.46,176.38,3.14]
[1754650272840,2.99,176.46,176.45,5.6663]
[1754650273439,2.99,176.46,176.44,8.8065]
[1754650273640,2.99,176.46,176.44,8.84461587]
[1754650273935,2.99,176.46,176.45,5.6663]
[1754650274146,0.04083155,176.47,176.46,3.14]
[1754650274346,0.04083155,176.47,176.44,0.03811587]
[1754650274634,2.99,176.46,176.44,0.03811587]
[1754650275233,2.99,176.45,176.44,0.03811587]
[1754650276437,2.99,176.45,176.38,3.14]
[1754650276645,2.99,176.43,176.38,3.14]
[1754650276837,2.99,176.41,176.36,3.14]
[1754650277243,2.99,176.41,176.37,8.8086]
[1754650277837,3.03350909,176.41,176.37,8.8086]
[1754650278129,3.03350909,176.41,176.37,3.14]
[1754650278332,0.04350909,176.41,176.33,3.14]
[1754650278539,0.04350909,176.41,176.35,3.14]
[1754650278741,0.04350909,176.41,176.4,3.14]
[1754650278937,2.99,176.41,176.35,3.14]
[1754650279333,2.99,176.41,176.33,3.14]
[1754650280034,0.03810717,176.39,176.33,3.14]
[1754650280239,0.03810717,176.39,176.32,5.18895766]
[1754650280240,0.03810717,176.39,176.38,5.6683]
[1754650280439,0.03810717,176.39,176.38,8.8083]
[1754650280634,3.02810717,176.39,176.33,3.14]
[1754650281340,0.03810717,176.39,176.36,5.6689]
[1754650281645,2.99,176.37,176.36,8.8089]
[1754650282444,2.99,176.38,176.37,8.8086]
[1754650282945,8.17895766,176.42,176.33,3.14]
[1754650283139,0.03738737,176.39,176.33,3.14]
[1754650283344,0.03738737,176.39,176.37,5.6686]
[1754650283541,2.99,176.38,176.37,8.8086]
[1754650284345,3.02738737,176.39,176.38,8.8085]
[1754650284734,0.03738737,176.39,176.38,8.8085]
[1754650289849,3.02738737,176.39,176.38,5.6685]
[1754650290454,3.02738737,176.39,176.38,8.8085]
[1754650291043,0.03738737,176.39,176.38,8.8085]
[1754650292153,3.02738737,176.39,176.38,8.8085]
[1754650293953,0.03738737,176.39,176.38,8.8085]
[1754650295254,3.02738737,176.39,176.38,8.8085]
[1754650295659,3.02738737,176.39,176.38,5.6685]
[1754650297760,3.02738737,176.39,176.38,8.7785]
[1754650298063,0.03738737,176.39,176.38,8.7785]
[1754650301973,3.02738737,176.39,176.38,8.7785]
[1754650302674,104.02,176.55,176.45,3.11]
[1754650302675,3.18668782,176.52,176.45,3.11]
[1754650302875,2.99,176.51,176.45,3.11]
[1754650303376,2.99,176.51,176.47,5.6654]
[1754650304168,2.99,176.49,176.46,5.6658]
[1754650304470,2.99,176.49,176.45,3.11]
[1754650304671,2.99,176.52,176.48,8.7753]
[1754650304873,10.0,176.53,176.45,3.11]
[1754650305180,10.0,176.53,176.52,5.664]
[1754650305370,2.99,176.55,176.52,3.11]
[1754650305767,2.99,176.55,176.53,5.6635]
[1754650305967,2.99,176.55,176.48,5.1859982]
[1754650306175,2.99,176.55,176.54,3.11]
[1754650306671,2.99,176.55,176.48,5.1859982]
[1754650306672,2.99,176.57,176.49,3.11]
[1754650306878,2.99,176.57,176.5,5.6645]
[1754650307176,5.1859982,176.56,176.49,3.11]
[1754650307375,2.99,176.55,176.49,3.11]
[1754650307677,2.99,176.53,176.49,3.11]
[1754650308779,2.99,176.55,176.48,5.1859982]
[1754650309082,2.99,176.55,176.49,3.11]
[1754650309271,2.99,176.54,176.51,3.11]
[1754650309475,2.99,176.53,176.52,3.11]
[1754650310875,2.99,176.56,176.51,3.11]
[1754650311074,2.99,176.54,176.51,3.11]
[1754650311378,2.99,176.54,176.53,3.11]
[1754650311977,5.1859982,176.54,176.5,3.11]
[1754650312277,2.99,176.53,176.49,3.11]
[1754650312478,2.99,176.53,176.44,5.1859982]
[1754650312779,2.99,176.53,176.47,3.11]
[1754650314180,2.99,176.53,176.49,5.6649]
[1754650314384,2.99,176.52,176.49,5.6649]
[1754650314678,2.99,176.54,176.48,5.1859982]
[1754650314976,2.99,176.54,176.52,3.11]
[1754650315176,2.99,176.54,176.49,3.11]
[1754650315572,2.99,176.57,176.51,3.11]
[1754650316182,2.99,176.56,176.55,3.11]
[1754650316580,10.0,176.58,176.55,3.11]
[1754650316877,2.99,176.57,176.56,3.11]
[1754650318086,10.0,176.58,176.57,3.11]
[1754650318383,5.1859982,176.62,176.52,5.1859982]
[1754650318584,2.99,176.59,176.58,3.11]
[1754650318778,2.99,176.59,176.53,3.11]
[1754650318977,2.99,176.59,176.56,5.6627]
[1754650319182,2.99,176.59,176.58,3.11]
[1754650320780,2.99,176.61,176.58,3.11]
[1754650321082,2.99,176.61,176.59,3.11]
[1754650321279,2.99,176.63,176.6,3.11]
[1754650321481,2.99,176.62,176.59,3.11]
[1754650321678,10.0,176.63,176.56,5.1859982]
[1754650321977,12.99,176.69,176.63,3.11]
[1754650322184,2.99,176.68,176.63,3.11]
[1754650322575,2.99,176.67,176.63,3.11]
[1754650322775,0.03755403,176.68,176.62,5.1859982]
[1754650322981,0.03755403,176.68,176.64,3.11]
[1754650323180,3.02755403,176.68,176.64,3.11]
[1754650323685,3.02755403,176.68,176.65,5.6597]
[1754650323876,3.02755403,176.68,176.67,3.11]
[1754650324484,2.99,176.67,176.61,3.11]
[1754650324982,2.99,176.67,176.62,5.6606]
[1754650325283,2.99,176.67,176.59,3.11]
[1754650325480,2.99,176.67,176.53,104.42]
[1754650325481,5.1859982,176.7,176.62,5.1859982]
[1754650325788,0.03723592,176.66,176.65,5.6598]
[1754650326181,2.99,176.69,176.66,8.8793]
[1754650326488,3.19,176.7,176.69,3.22]
[1754650327080,3.19,176.7,176.65,3.22]
[1754650327385,10.0,176.73,176.65,3.22]
[1754650327386,3.19,176.71,176.65,3.22]
[1754650327587,3.19,176.68,176.66,3.22]
[1754650327888,3.19,176.67,176.66,3.22]
[1754650328484,0.03704018,176.69,176.67,3.22]
[1754650328680,3.19,176.68,176.67,3.22]
[1754650329789,0.03704018,176.69,176.67,3.22]
[1754650329991,0.03704018,176.69,176.68,3.22]
[1754650330582,0.03704018,176.69,176.68,8.8789]
[1754650333891,5.1859982,176.79,176.69,3.22]
[1754650334090,3.19,176.79,176.72,3.22]
[1754650334290,3.19,176.79,176.74,5.657]
[1754650334496,3.19,176.79,176.76,3.22]
[1754650334985,3.19,176.79,176.74,8.8769]
[1754650335191,3.19,176.79,176.74,3.22]
[1754650335492,3.19,176.79,176.75,3.22]
[1754650335991,3.19,176.79,176.75,3.25938189]
[1754650337189,3.19,176.79,176.75,0.03938189]
[1754650337390,3.19,176.77,176.75,0.03938189]
[1754650339691,5.17037545,176.8,176.75,0.03938189]